fUST/lending_fUST_20240925
["ID","MTS","AMOUNT","RATE_DAILY","PERIOD"]
[339094039,1727241039703,-500.0,0.00016438,2]
[339094041,1727241039714,-228.041103,0.00016438,2]
[339094042,1727241039724,-500.0,0.00016438,2]
[339094043,1727241039735,-339.50185157,0.00016438,2]
[339094044,1727241039746,-500.0,0.00016438,2]
[339094045,1727241039758,-500.0,0.00016438,2]
[339094046,1727241039767,-500.0,0.00016438,2]
[339094047,1727241039776,-1029.26,0.00016438,2]
[339094048,1727241039785,-501.43794384,0.00016438,2]
[339094049,1727241039794,-500.0,0.00016438,2]
[339094050,1727241039804,-500.0,0.00016438,2]
[339094051,1727241039814,-500.0,0.00016438,2]
[339094052,1727241039825,-520.46,0.00016438,2]
[339094053,1727241039836,-1031.06,0.00016438,2]
[339094054,1727241039846,-500.0,0.00016438,2]
[339094055,1727241039857,-1834.34,0.00016438,2]
[339094056,1727241039867,-558.53,0.00016438,2]
[339094057,1727241039876,-506.42866638,0.00016438,2]
[339094058,1727241039886,-500.0,0.00016438,2]
[339094059,1727241039895,-500.0,0.00016438,2]
[339094060,1727241039904,-500.0,0.00016438,2]
[339094061,1727241039913,-500.0,0.00016438,2]
[339094062,1727241039922,-500.0,0.00016438,2]
[339094063,1727241039931,-500.0,0.00016438,2]
[339094064,1727241039941,-500.0,0.00016438,2]
[339094065,1727241039951,-500.0,0.00016438,2]
[339094066,1727241039960,-500.0,0.00016438,2]
[339094067,1727241039970,-619.53,0.00016438,2]
[339094068,1727241039979,-364.50586813,0.00016438,2]
[339094069,1727241039988,-500.0,0.00016438,2]
[339094070,1727241039998,-500.0,0.00016438,2]
[339094071,1727241040008,-500.0,0.00016438,2]
[339094072,1727241040017,-861.19,0.00016438,2]
[339094073,1727241040027,-500.0,0.00016438,2]
[339094074,1727241040036,-749.38,0.00016438,2]
[339094075,1727241040045,-500.0,0.00016438,2]
[339094076,1727241040057,-1034.58,0.00016438,2]
[339094077,1727241040066,-500.0,0.00016438,2]
[339094078,1727241040075,-1145.94,0.00016438,2]
[339094079,1727241040085,-500.0,0.00016438,2]
[339094080,1727241040094,-500.0,0.00016438,2]
[339094081,1727241040105,-500.0,0.00016438,2]
[339094082,1727241040114,-500.0,0.00016438,2]
[339094083,1727241040123,-500.0,0.00016438,2]
[339094084,1727241040133,-500.0,0.00016438,2]
[339094085,1727241040143,-500.0,0.00016438,2]
[339094086,1727241040152,-500.0,0.00016438,2]
[339094087,1727241040162,-500.0,0.00016438,2]
[339094088,1727241040171,-500.0,0.00016438,2]
[339094089,1727241040180,-544.34198388,0.00016438,2]
[339094090,1727241040189,-500.0,0.00016438,2]
[339094091,1727241040199,-500.0,0.00016438,2]
[339094092,1727241040209,-500.0,0.00016438,2]
[339094093,1727241040220,-500.0,0.00016438,2]
[339094094,1727241040231,-500.0,0.00016438,2]
[339094095,1727241040395,-500.0,0.00016438,2]
[339094096,1727241040407,-500.0,0.00016438,2]
[339094097,1727241040416,-1631.34,0.00016438,2]
[339094098,1727241040426,-500.0,0.00016438,2]
[339094099,1727241040435,-500.0,0.00016438,2]
[339094100,1727241040444,-500.0,0.00016438,2]
[339094101,1727241040454,-614.59,0.00016438,2]
[339094102,1727241040463,-500.0,0.00016438,2]
[339094103,1727241040473,-500.0,0.00016438,2]
[339094104,1727241040483,-508.55,0.00016438,2]
[339094105,1727241040492,-500.0,0.00016438,2]
[339094106,1727241040501,-500.0,0.00016438,2]
[339094107,1727241040511,-500.0,0.00016438,2]
[339094108,1727241040520,-516.75044849,0.00016438,2]
[339094109,1727241040529,-500.0,0.00016438,2]
[339094110,1727241040538,-150.0,0.00016438,2]
[339094111,1727241040548,-500.0,0.00016438,2]
[339094112,1727241040557,-500.0,0.00016438,2]
[339094113,1727241040566,-500.0,0.00016438,2]
[339094114,1727241040575,-500.0,0.00016438,2]
[339094115,1727241040584,-500.0,0.00016438,2]
[339094116,1727241040594,-500.0,0.00016438,2]
[339094117,1727241040603,-582.13,0.00016438,2]
[339094118,1727241040620,-527.10429913,0.00016438,2]
[339094119,1727241040629,-1394.19,0.00016438,2]
[339094120,1727241040638,-1394.19,0.00016438,2]
[339094121,1727241040647,-1394.19,0.00016438,2]
[339094122,1727241040657,-1394.19,0.00016438,2]
[339094123,1727241040666,-1394.19,0.00016438,2]
[339094124,1727241040676,-1394.19,0.00016438,2]
[339094125,1727241040685,-1394.19,0.00016438,2]
[339094126,1727241040695,-1394.19,0.00016438,2]
[339094127,1727241040706,-504.75512536,0.00016438,2]
[339094128,1727241040715,-1394.19,0.00016438,2]
[339094129,1727241040726,-1394.19,0.00016438,2]
[339094130,1727241040736,-1394.19,0.00016438,2]
[339094131,1727241040747,-1394.19,0.00016438,2]
[339094132,1727241040757,-1394.19,0.00016438,2]
[339094133,1727241040767,-1394.19,0.00016438,2]
[339094134,1727241040776,-926.9,0.00016438,2]
[339094135,1727241040786,-1394.19,0.00016438,2]
[339094136,1727241040795,-500.0,0.00016438,2]
[339094137,1727241040805,-1394.19,0.00016438,2]
[339094138,1727241040816,-1069.57,0.00016438,2]
[339094139,1727241040825,-1394.19,0.00016438,2]
[339094140,1727241040834,-1394.19,0.00016438,2]
[339094141,1727241040843,-1394.19,0.00016438,2]
[339094142,1727241040853,-1394.19,0.00016438,2]
[339094143,1727241040864,-500.0,0.00016438,2]
[339094144,1727241040874,-1394.19,0.00016438,2]
[339094145,1727241040883,-1394.19,0.00016438,2]
[339094146,1727241040892,-1394.19,0.00016438,2]
[339094147,1727241040903,-1394.39462771,0.00016438,2]
[339094148,1727241040912,-500.0,0.00016438,2]
[339094149,1727241040923,-965.95,0.00016438,2]
[339094150,1727241040934,-500.0,0.00016438,2]
[339094151,1727241040945,-500.0,0.00016438,2]
[339094152,1727241040956,-839.11,0.00016438,2]
[339094153,1727241040965,-500.0,0.00016438,2]
[339094154,1727241040974,-500.0,0.00016438,2]
[339094155,1727241040984,-500.0,0.00016438,2]
[339094156,1727241040993,-717.39,0.00016438,2]
[339094157,1727241041002,-500.0,0.00016438,2]
[339094158,1727241041012,-500.0,0.00016438,2]
[339094159,1727241041023,-1588.79,0.00016438,2]
[339094160,1727241041034,-501.314215,0.00016438,2]
[339094161,1727241041045,-500.0,0.00016438,2]
[339094162,1727241041055,-500.0,0.00016438,2]
[339094163,1727241041065,-500.0,0.00016438,2]
[339094164,1727241041074,-500.0,0.00016438,2]
[339094165,1727241041084,-165.4069393,0.00016438,2]
[339094166,1727241041093,-500.0,0.00016438,2]
[339094167,1727241041103,-579.420324,0.00016438,2]
[339094168,1727241041114,-522.2567937,0.00016438,2]
[339094169,1727241041123,-500.0,0.00016438,2]
[339094170,1727241041133,-558.21470432,0.00016438,2]
[339094171,1727241041142,-730.14,0.00016438,2]
[339094172,1727241041151,-1728.28,0.00016438,2]
[339094173,1727241041160,-712.02,0.00016438,2]
[339094174,1727241041170,-500.0,0.00016438,2]
[339094175,1727241041179,-515.50383573,0.00016438,2]
[339094176,1727241041188,-525.01591877,0.00016438,2]
[339094177,1727241041198,-500.0,0.00016438,2]
[339094178,1727241041207,-500.0,0.00016438,2]
[339094179,1727241041216,-500.0,0.00016438,2]
[339094180,1727241041226,-500.0,0.00016438,2]
[339094181,1727241041235,-501.07083175,0.00016438,2]
[339094182,1727241041244,-500.0,0.00016438,2]
[339094183,1727241041254,-500.0,0.00016438,2]
[339094184,1727241041263,-500.0,0.00016438,2]
[339094185,1727241041272,-500.0,0.00016438,2]
[339094186,1727241041281,-503.85708857,0.00016438,2]
[339094187,1727241041290,-500.0,0.00016438,2]
[339094188,1727241041300,-356.41142377,0.00016438,2]
[339094189,1727241041308,-500.0,0.00016438,2]
[339094190,1727241041317,-500.0,0.00016438,2]
[339094191,1727241041326,-500.0,0.00016438,2]
[339094192,1727241041336,-500.0,0.00016438,2]
[339094193,1727241041345,-500.0,0.00016438,2]
[339094194,1727241041355,-500.0,0.00016438,2]
[339094195,1727241041365,-547.65287999,0.00016438,2]
[339094196,1727241041374,-500.0,0.00016438,2]
[339094197,1727241041383,-593.43606752,0.00016438,2]
[339094198,1727241041392,-500.0,0.00016438,2]
[339094199,1727241041401,-500.0,0.00016438,2]
[339094200,1727241041411,-500.32855017,0.00016438,2]
[339094201,1727241041420,-500.0,0.00016438,2]
[339094202,1727241041430,-500.0,0.00016438,2]
[339094203,1727241041439,-501.85579098,0.00016438,2]
[339094204,1727241041451,-282.01,0.00016438,2]
[339094205,1727241041460,-500.0,0.00016438,2]
[339094206,1727241041469,-1022.74,0.00016438,2]
[339094207,1727241041478,-822.77,0.00016438,2]
[339094208,1727241041488,-500.0,0.00016438,2]
[339094209,1727241041497,-647.08,0.00016438,2]
[339094210,1727241041506,-745.56,0.00016438,2]
[339094211,1727241041516,-502.29077958,0.00016438,2]
[339094212,1727241041527,-500.0,0.00016438,2]
[339094213,1727241041536,-500.0,0.00016438,2]
[339094214,1727241041545,-500.0,0.00016438,2]
[339094215,1727241041555,-854.12,0.00016438,2]
[339094216,1727241041564,-916.39,0.00016438,2]
[339094217,1727241041573,-500.0,0.00016438,2]
[339094218,1727241041582,-500.0,0.00016438,2]
[339094219,1727241041591,-500.0,0.00016438,2]
[339094220,1727241041601,-500.0,0.00016438,2]
[339094221,1727241041612,-558.07,0.00016438,2]
[339094222,1727241041621,-533.06619255,0.00016438,2]
[339094223,1727241041631,-519.60682558,0.00016438,2]
[339094224,1727241041641,-500.87146376,0.00016438,2]
[339094225,1727241041650,-578.81,0.00016438,2]
[339094226,1727241041659,-500.0,0.00016438,2]
[339094227,1727241041668,-903.3,0.00016438,2]
[339094228,1727241041678,-644.17,0.00016438,2]
[339094229,1727241041687,-500.0,0.00016438,2]
[339094230,1727241041696,-500.0,0.00016438,2]
[339094231,1727241041706,-500.0,0.00016438,2]
[339094232,1727241041717,-500.0,0.00016438,2]
[339094233,1727241041729,-500.0,0.00016438,2]
[339094234,1727241041740,-500.0,0.00016438,2]
[339094235,1727241041750,-959.51,0.00016438,2]
[339094236,1727241041761,-1022.01,0.00016438,2]
[339094237,1727241041770,-957.29,0.00016438,2]
[339094238,1727241041780,-500.0,0.00016438,2]
[339094239,1727241041790,-500.0,0.00016438,2]
[339094240,1727241041799,-500.0,0.00016438,2]
[339094241,1727241041808,-500.0,0.00016438,2]
[339094242,1727241041818,-366.31494594,0.00016438,2]
[339094243,1727241041827,-549.19,0.00016438,2]
[339094244,1727241041837,-500.0,0.00016438,2]
[339094245,1727241041847,-500.0,0.00016438,2]
[339094246,1727241041856,-500.0,0.00016438,2]
[339094247,1727241041866,-500.0,0.00016438,2]
[339094248,1727241041875,-501.12979413,0.00016438,2]
[339094249,1727241041884,-500.0,0.00016438,2]
[339094250,1727241041893,-500.0,0.00016438,2]
[339094251,1727241041902,-500.0,0.00016438,2]
[339094252,1727241041911,-500.0,0.00016438,2]
[339094253,1727241041921,-500.0,0.00016438,2]
[339094254,1727241041931,-500.0,0.00016438,2]
[339094255,1727241041940,-210.50314184,0.00016438,2]
[339094256,1727241041950,-500.0,0.00016438,2]
[339094257,1727241041959,-500.0,0.00016438,2]
[339094258,1727241041969,-1092.36,0.00016438,2]
[339094259,1727241041979,-500.0,0.00016438,2]
[339094260,1727241041988,-504.05909663,0.00016438,2]
[339094261,1727241041997,-500.0,0.00016438,2]
[339094262,1727241042007,-500.0,0.00016438,2]
[339094263,1727241042016,-515.25356676,0.00016438,2]
[339094264,1727241042025,-500.0,0.00016438,2]
[339094265,1727241042034,-500.0,0.00016438,2]
[339094266,1727241042044,-500.0,0.00016438,2]
[339094267,1727241042053,-500.0,0.00016438,2]
[339094268,1727241042063,-500.0,0.00016438,2]
[339094269,1727241042072,-500.0,0.00016438,2]
[339094270,1727241042081,-500.0,0.00016438,2]
[339094271,1727241042091,-500.0,0.00016438,2]
[339094272,1727241042100,-500.0,0.00016438,2]
[339094273,1727241042110,-433.5,0.00016438,2]
[339094274,1727241042120,-715.1,0.00016438,2]
[339094275,1727241042129,-263.82765291,0.00016438,2]
[339094276,1727241042139,-500.0,0.00016438,2]
[339094277,1727241042148,-500.0,0.00016438,2]
[339094278,1727241042158,-588.16,0.00016438,2]
[339094279,1727241042167,-500.0,0.00016438,2]
[339094280,1727241042176,-500.0,0.00016438,2]
[339094281,1727241042186,-1257.3,0.00016438,2]
[339094282,1727241042195,-500.0,0.00016438,2]
[339094283,1727241042204,-500.0,0.00016438,2]
[339094284,1727241042214,-509.40712157,0.00016438,2]
[339094285,1727241042224,-500.0,0.00016438,2]
[339094286,1727241042233,-500.0,0.00016438,2]
[339094287,1727241042243,-500.0,0.00016438,2]
[339094288,1727241042253,-500.0,0.00016438,2]
[339094289,1727241042262,-500.0,0.00016438,2]
[339094290,1727241042271,-500.0,0.00016438,2]
[339094291,1727241042281,-500.0,0.00016438,2]
[339094292,1727241042291,-508.49644787,0.00016438,2]
[339094293,1727241042300,-500.0,0.00016438,2]
[339094294,1727241042310,-500.0,0.00016438,2]
[339094295,1727241042319,-510.10826023,0.00016438,2]
[339094296,1727241042328,-537.98,0.00016438,2]
[339094297,1727241042338,-397.25881911,0.00016438,2]
[339094298,1727241042347,-500.0,0.00016438,2]
[339094299,1727241042357,-502.85458803,0.00016438,2]
[339094300,1727241042366,-500.3787007,0.00016438,2]
[339094301,1727241042375,-500.0,0.00016438,2]
[339094302,1727241042384,-500.0,0.00016438,2]
[339094304,1727241042394,-295.56372211,0.00016438,2]
[339094306,1727241042403,-500.0,0.00016438,2]
[339094308,1727241042413,-500.0,0.00016438,2]
[339094309,1727241042422,-500.0,0.00016438,2]
[339094310,1727241042432,-500.0,0.00016438,2]
[339094312,1727241042441,-500.0,0.00016438,2]
[339094313,1727241042450,-5236.22,0.00016438,2]
[339094314,1727241042460,-500.0,0.00016438,2]
[339094316,1727241042469,-500.0,0.00016438,2]
[339094318,1727241042478,-500.0,0.00016438,2]
[339094319,1727241042487,-500.0,0.00016438,2]
[339094320,1727241042496,-500.0,0.00016438,2]
[339094321,1727241042506,-500.0,0.00016438,2]
[339094322,1727241042515,-500.0,0.00016438,2]
[339094323,1727241042524,-500.0,0.00016438,2]
[339094324,1727241042533,-566.14180057,0.00016438,2]
[339094325,1727241042542,-569.79,0.00016438,2]
[339094327,1727241042552,-500.0,0.00016438,2]
[339094328,1727241042562,-500.0,0.00016438,2]
[339094329,1727241042571,-500.0,0.00016438,2]
[339094330,1727241042581,-500.0,0.00016438,2]
[339094331,1727241042589,-500.0,0.00016438,2]
[339094332,1727241042598,-500.0,0.00016438,2]
[339094334,1727241042608,-501.75930275,0.00016438,2]
[339094336,1727241042617,-803.04,0.00016438,2]
[339094337,1727241042627,-500.0,0.00016438,2]
[339094338,1727241042636,-500.0,0.00016438,2]
[339094339,1727241042645,-500.0,0.00016438,2]
[339094340,1727241042654,-846.34,0.00016438,2]
[339094341,1727241042663,-703.19,0.00016438,2]
[339094342,1727241042673,-500.0,0.00016438,2]
[339094343,1727241042682,-500.0,0.00016438,2]
[339094344,1727241042691,-500.0,0.00016438,2]
[339094345,1727241042700,-500.0,0.00016438,2]
[339094346,1727241042710,-1115.13,0.00016438,2]
[339094347,1727241042719,-705.37,0.00016438,2]
[339094348,1727241042728,-500.0,0.00016438,2]
[339094349,1727241042738,-500.0,0.00016438,2]
[339094350,1727241042747,-500.0,0.00016438,2]
[339094351,1727241042757,-500.0,0.00016438,2]
[339094352,1727241042766,-292.40307574,0.00016438,2]
[339094354,1727241042776,-500.0,0.00016438,2]
[339094355,1727241042828,-500.0,0.00016438,2]
[339094356,1727241042837,-500.0,0.00016438,2]
[339094357,1727241042846,-500.0,0.00016438,2]
[339094358,1727241042856,-500.0,0.00016438,2]
[339094359,1727241042865,-500.0,0.00016438,2]
[339094360,1727241042875,-581.97096738,0.00016438,2]
[339094361,1727241042884,-574.16,0.00016438,2]
[339094362,1727241042893,-500.0,0.00016438,2]
[339094363,1727241042902,-500.0,0.00016438,2]
[339094364,1727241042911,-500.0,0.00016438,2]
[339094365,1727241042920,-500.0,0.00016438,2]
[339094366,1727241042929,-500.0,0.00016438,2]
[339094367,1727241042938,-504.22083228,0.00016438,2]
[339094368,1727241042947,-500.0,0.00016438,2]
[339094369,1727241042956,-210.44512299,0.00016438,2]
[339094370,1727241042965,-317.44378655,0.00016438,2]
[339094371,1727241042974,-500.0,0.00016438,2]
[339094372,1727241042983,-595.16335619,0.00016438,2]
[339094373,1727241042993,-664.81,0.00016438,2]
[339094374,1727241043002,-500.0,0.00016438,2]
[339094375,1727241043011,-500.0,0.00016438,2]
[339094376,1727241043020,-500.0,0.00016438,2]
[339094377,1727241043029,-500.0,0.00016438,2]
[339094378,1727241043039,-500.0,0.00016438,2]
[339094380,1727241043048,-500.0,0.00016438,2]
[339094382,1727241043057,-500.0,0.00016438,2]
[339094384,1727241043066,-500.0,0.00016438,2]
[339094386,1727241043075,-500.0,0.00016438,2]
[339094387,1727241043084,-500.0,0.00016438,2]
[339094388,1727241043093,-1661.69,0.00016438,2]
[339094389,1727241043101,-500.0,0.00016438,2]
[339094390,1727241043110,-500.0,0.00016438,2]
[339094391,1727241043121,-616.3711765,0.00016438,2]
[339094392,1727241043132,-1000.0,0.00016438,2]
[339094393,1727241043142,-500.0,0.00016438,2]
[339094394,1727241043151,-810.55,0.00016438,2]
[339094395,1727241043161,-500.0,0.00016438,2]
[339094396,1727241043171,-500.0,0.00016438,2]
[339094397,1727241043182,-500.0,0.00016438,2]
[339094398,1727241043193,-500.0,0.00016438,2]
[339094399,1727241043202,-500.0,0.00016438,2]
[339094400,1727241043214,-608.04516758,0.00016438,2]
[339094401,1727241043223,-500.0,0.00016438,2]
[339094402,1727241043235,-755.66,0.00016438,2]
[339094403,1727241043245,-558.4039356,0.00016438,2]
[339094404,1727241043256,-503.77114381,0.00016438,2]
[339094405,1727241043266,-500.0,0.00016438,2]
[339094406,1727241043275,-445.07096973,0.00016438,2]
[339094407,1727241043284,-500.0,0.00016438,2]
[339094408,1727241043293,-500.0,0.00016438,2]
[339094409,1727241043302,-500.0,0.00016438,2]
[339094410,1727241043311,-500.0,0.00016438,2]
[339094411,1727241043320,-500.0,0.00016438,2]
[339094412,1727241043331,-500.0,0.00016438,2]
[339094413,1727241043340,-500.0,0.00016438,2]
[339094414,1727241043351,-500.0,0.00016438,2]
[339094415,1727241043364,-500.0,0.00016438,2]
[339094416,1727241043374,-500.0,0.00016438,2]
[339094417,1727241043383,-500.0,0.00016438,2]
[339094418,1727241043392,-500.0,0.00016438,2]
[339094419,1727241043400,-501.77010867,0.00016438,2]
[339094420,1727241043410,-500.0,0.00016438,2]
[339094421,1727241043419,-507.98221229,0.00016438,2]
[339094422,1727241043428,-500.0,0.00016438,2]
[339094423,1727241043437,-500.0,0.00016438,2]
[339094424,1727241043446,-501.71030824,0.00016438,2]
[339094425,1727241043458,-500.0,0.00016438,2]
[339094426,1727241043467,-511.75383957,0.00016438,2]
[339094427,1727241043476,-211.8992821,0.00016438,2]
[339094428,1727241043486,-555.02831218,0.00016438,2]
[339094429,1727241043496,-1151.51,0.00016438,2]
[339094430,1727241043506,-500.0,0.00016438,2]
[339094431,1727241043514,-500.0,0.00016438,2]
[339094432,1727241043523,-500.0,0.00016438,2]
[339094433,1727241043533,-500.0,0.00016438,2]
[339094434,1727241043542,-500.0,0.00016438,2]
[339094435,1727241043551,-500.0,0.00016438,2]
[339094436,1727241043560,-666.99,0.00016438,2]
[339094437,1727241043569,-392.44710541,0.00016438,2]
[339094438,1727241043578,-500.0,0.00016438,2]
[339094439,1727241043586,-509.68535942,0.00016438,2]
[339094440,1727241043595,-500.0,0.00016438,2]
[339094441,1727241043604,-500.0,0.00016438,2]
[339094442,1727241043613,-500.0,0.00016438,2]
[339094443,1727241043622,-500.0,0.00016438,2]
[339094444,1727241043632,-500.0,0.00016438,2]
[339094445,1727241043642,-1058.31,0.00016438,2]
[339094446,1727241043654,-500.0,0.00016438,2]
[339094447,1727241043665,-552.31,0.00016438,2]
[339094448,1727241043674,-508.99972627,0.00016438,2]
[339094449,1727241043683,-500.0,0.00016438,2]
[339094450,1727241043692,-500.0,0.00016438,2]
[339094451,1727241043702,-500.0,0.00016438,2]
[339094452,1727241043710,-511.06119485,0.00016438,2]
[339094453,1727241043721,-500.0,0.00016438,2]
[339094454,1727241043730,-500.0,0.00016438,2]
[339094455,1727241043742,-664.23,0.00016438,2]
[339094456,1727241043752,-825.67,0.00016438,2]
[339094457,1727241043763,-500.0,0.00016438,2]
[339094458,1727241043772,-500.0,0.00016438,2]
[339094459,1727241043782,-500.0,0.00016438,2]
[339094460,1727241043791,-4414.59,0.00016438,2]
[339094461,1727241043800,-583.03,0.00016438,2]
[339094462,1727241043809,-500.0,0.00016438,2]
[339094463,1727241043818,-500.0,0.00016438,2]
[339094464,1727241043827,-570.63,0.00016438,2]
[339094465,1727241043836,-500.0,0.00016438,2]
[339094466,1727241043845,-500.0,0.00016438,2]
[339094467,1727241043854,-500.85387924,0.00016438,2]
[339094468,1727241043863,-500.0,0.00016438,2]
[339094469,1727241043872,-358.17712727,0.00016438,2]
[339094470,1727241043881,-204.47624594,0.00016438,2]
[339094471,1727241043890,-505.13674312,0.00016438,2]
[339094472,1727241043899,-646.44,0.00016438,2]
[339094473,1727241043908,-537.36,0.00016438,2]
[339094474,1727241043918,-464.19539959,0.00016438,2]
[339094475,1727241043929,-500.0,0.00016438,2]
[339094476,1727241043939,-1386.44,0.00016438,2]
[339094477,1727241043950,-500.0,0.00016438,2]
[339094478,1727241043962,-500.0,0.00016438,2]
[339094479,1727241043972,-500.0,0.00016438,2]
[339094480,1727241043981,-500.0,0.00016438,2]
[339094481,1727241043991,-509.30670106,0.00016438,2]
[339094482,1727241043999,-500.0,0.00016438,2]
[339094483,1727241044009,-500.0,0.00016438,2]
[339094484,1727241044018,-500.0,0.00016438,2]
[339094485,1727241044027,-514.51284027,0.00016438,2]
[339094486,1727241044036,-510.5055585,0.00016438,2]
[339094487,1727241044045,-500.0,0.00016438,2]
[339094488,1727241044054,-500.0,0.00016438,2]
[339094489,1727241044065,-500.0,0.00016438,2]
[339094490,1727241044074,-500.0,0.00016438,2]
[339094491,1727241044083,-509.40183838,0.00016438,2]
[339094492,1727241044092,-506.90914902,0.00016438,2]
[339094493,1727241044101,-500.0,0.00016438,2]
[339094494,1727241044110,-151.0,0.00016438,2]
[339094495,1727241044120,-500.0,0.00016438,2]
[339094496,1727241044130,-500.0,0.00016438,2]
[339094497,1727241044140,-689.84,0.00016438,2]
[339094498,1727241044149,-500.0,0.00016438,2]
[339094499,1727241044159,-500.0,0.00016438,2]
[339094500,1727241044168,-500.0,0.00016438,2]
[339094501,1727241044177,-500.0,0.00016438,5]
[339094502,1727241044187,-500.0,0.00016438,2]
[339094503,1727241044196,-500.0,0.00016438,2]
[339094504,1727241044205,-788.23,0.00016438,2]
[339094505,1727241044215,-500.0,0.00016438,2]
[339094506,1727241044225,-500.0,0.00016438,2]
[339094507,1727241044234,-500.0,0.00016438,2]
[339094508,1727241044243,-500.0,0.00016438,2]
[339094509,1727241044253,-500.0,0.00016438,2]
[339094510,1727241044263,-500.0,0.00016438,2]
[339094511,1727241044272,-505.04432616,0.00016438,2]
[339094512,1727241044281,-151.0,0.00016438,2]
[339094513,1727241044290,-500.0,0.00016438,2]
[339094514,1727241044300,-500.0,0.00016438,2]
[339094515,1727241044309,-614.67,0.00016438,2]
[339094516,1727241044318,-500.0,0.00016438,2]
[339094517,1727241044327,-604.00328427,0.00016438,2]
[339094518,1727241044336,-151.0,0.00016438,2]
[339094519,1727241044345,-2204.17,0.00016438,2]
[339094520,1727241044354,-500.0,0.00016438,2]
[339094521,1727241044364,-500.0,0.00016438,2]
[339094522,1727241044374,-712.95,0.00016438,2]
[339094523,1727241044384,-500.0,0.00016438,2]
[339094524,1727241044393,-500.0,0.00016438,2]
[339094525,1727241044402,-502.10055461,0.00016438,2]
[339094526,1727241044411,-515.70041427,0.00016438,2]
[339094527,1727241044420,-500.0,0.00016438,2]
[339094528,1727241044430,-500.0,0.00016438,2]
[339094529,1727241044439,-500.0,0.00016438,2]
[339094530,1727241044448,-500.0,0.00016438,2]
[339094531,1727241044458,-500.0,0.00016438,2]
[339094532,1727241044467,-500.0,0.00016438,2]
[339094533,1727241044477,-500.0,0.00016438,2]
[339094534,1727241044486,-500.0,0.00016438,2]
[339094535,1727241044496,-500.0,0.00016438,2]
[339094536,1727241044506,-500.0,0.00016438,2]
[339094537,1727241044516,-151.0,0.00016438,2]
[339094538,1727241044526,-500.0,0.00016438,2]
[339094539,1727241044535,-151.0,0.00016438,2]
[339094540,1727241044544,-207.511894,0.00016438,2]
[339094541,1727241044554,-500.0,0.00016438,2]
[339094542,1727241044563,-493.002,0.00016438,2]
[339094543,1727241044573,-493.002,0.00016438,2]
[339094544,1727241044583,-493.002,0.00016438,2]
[339094545,1727241044592,-500.0,0.00016438,2]
[339094546,1727241044602,-656.37,0.00016438,2]
[339094547,1727241044612,-531.27071109,0.00016438,2]
[339094548,1727241044621,-493.002,0.00016438,2]
[339094549,1727241044630,-500.0,0.00016438,2]
[339094550,1727241044640,-493.002,0.00016438,2]
[339094551,1727241044650,-493.002,0.00016438,2]
[339094552,1727241044659,-500.0,0.00016438,2]
[339094553,1727241044668,-151.0,0.00016438,2]